fUST/lending_fUST_20240409
["ID","MTS","AMOUNT","RATE_DAILY","PERIOD"]
[321963527,1712652642297,-500.0,0.00035672,5]
[321963529,1712652642307,-500.0,0.00035672,5]
[321963531,1712652642317,-500.0,0.00035672,5]
[321963533,1712652642327,-500.0,0.00035672,5]
[321963535,1712652642336,-500.0,0.00035672,5]
[321963537,1712652642346,-227.25539234,0.00035672,5]
[321963539,1712652642355,-500.0,0.00035672,5]
[321963541,1712652642365,-500.0,0.00035672,5]
[321963544,1712652642375,-500.0,0.00035672,5]
[321963546,1712652642385,-500.0,0.00035672,5]
[321963547,1712652642394,-500.0,0.00035672,5]
[321963549,1712652642403,-501.35539682,0.00035672,5]
[321963551,1712652642413,-500.0,0.00035672,5]
[321963553,1712652642422,-500.0,0.00035672,5]
[321963555,1712652642431,-500.0,0.00035672,5]
[321963557,1712652642441,-501.42083841,0.00035672,5]
[321963559,1712652642451,-500.0,0.00035672,5]
[321963561,1712652642461,-500.0,0.00035672,5]
[321963563,1712652642471,-500.0,0.00035672,5]
[321963565,1712652642481,-164.8734558,0.00035672,5]
[321963567,1712652642493,-500.0,0.00035672,5]
[321963570,1712652642503,-500.0,0.00035672,5]
[321963572,1712652642513,-500.0,0.00035672,5]
[321963574,1712652642523,-143.69493771,0.00035672,5]
[321963577,1712652642545,-356.30506229,0.00035672,5]
[321963579,1712652642556,-500.0,0.00035672,5]
[321963581,1712652642566,-500.0,0.00035672,5]
[321963583,1712652642578,-500.0,0.00035672,5]
[321963585,1712652642589,-500.0,0.00035672,5]
[321963587,1712652642600,-500.0,0.00035672,5]
[321963588,1712652642610,-500.0,0.00035672,5]
[321963590,1712652642620,-174.08275253,0.0003579,2]
[321963592,1712652642631,-500.0,0.00035888,5]
[321963594,1712652642641,-500.0,0.00035888,5]
[321963596,1712652642651,-500.0,0.00035889,5]
[321963598,1712652642661,-500.0,0.00035889,5]
[321963601,1712652642674,-500.0,0.00035889,5]
[321963603,1712652642683,-500.0,0.00035889,5]
[321963605,1712652642693,-500.0,0.00035889,5]
[321963607,1712652642701,-500.0,0.00035889,5]
[321963609,1712652642711,-500.0,0.00035889,5]
[321963611,1712652642720,-500.0,0.00035889,5]
[321963613,1712652642729,-560.0,0.00035889,2]
[321963615,1712652642739,-377.37248519,0.0003589,5]
[321963617,1712652642748,-501.61455761,0.0003589,5]
[321963619,1712652642757,-500.0,0.0003589,5]
[321963621,1712652642768,-500.0,0.0003589,5]
[321963622,1712652642777,-500.0,0.0003589,5]
[321963625,1712652642787,-500.0,0.0003589,5]
[321963627,1712652642796,-602.76359374,0.0003589,5]
[321963628,1712652642806,-500.0,0.0003589,5]
[321963631,1712652642815,-500.0,0.0003589,5]
[321963632,1712652642825,-755.82,0.0003589,5]
[321963635,1712652642835,-500.0,0.0003589,5]
[321963636,1712652642844,-261.45473475,0.0003589,5]
[321963655,1712652643010,-219.81959882,0.00035614,4]
[321963657,1712652643020,-238.54526525,0.0003589,5]
[321963659,1712652643029,-500.0,0.0003589,5]
[321963661,1712652643038,-190.0083105,0.0003589,5]
[321963663,1712652643048,-500.0,0.0003589,5]
[321963665,1712652643057,-500.0,0.0003589,5]
[321963667,1712652643066,-500.0,0.0003589,5]
[321963669,1712652643076,-500.0,0.0003589,5]
[321963671,1712652643086,-322.14662277,0.0003589,5]
[321963673,1712652643095,-501.53891085,0.0003589,5]
[321963675,1712652643105,-500.0,0.0003589,5]
[321963677,1712652643114,-545.82,0.0003589,5]
[321963679,1712652643123,-500.0,0.0003589,5]
[321963681,1712652643133,-331.83610918,0.0003589,5]
[321963683,1712652643142,-500.0,0.0003589,5]
[321963685,1712652643151,-500.0,0.0003589,5]
[321963687,1712652643160,-500.0,0.0003589,5]
[321963689,1712652643170,-507.55211452,0.0003589,5]
[321963691,1712652643179,-1264.68,0.0003589,5]
[321963693,1712652643189,-500.0,0.0003589,5]
[321963695,1712652643198,-580.11419855,0.0003589,5]
[321963697,1712652643207,-611.01157143,0.0003589,5]
[321963699,1712652643217,-500.0,0.0003589,5]
[321963701,1712652643226,-500.0,0.0003589,5]
[321963703,1712652643235,-246.51846652,0.0003589,5]
[321963705,1712652643244,-500.0,0.0003589,5]
[321963707,1712652643254,-400.75438426,0.0003589,5]
[321963709,1712652643264,-500.0,0.0003589,5]
[321963711,1712652643273,-500.0,0.0003589,5]
[321963714,1712652643283,-500.0,0.0003589,5]
[321963717,1712652643292,-500.0,0.0003589,5]
[321963720,1712652643301,-500.0,0.0003589,5]
[321963723,1712652643310,-500.0,0.0003589,5]
[321963726,1712652643319,-500.0,0.0003589,5]
[321963729,1712652643329,-500.0,0.0003589,5]
[321963732,1712652643338,-502.55184491,0.0003589,5]
[321963735,1712652643347,-504.62835373,0.0003589,5]
[321963738,1712652643356,-500.0,0.0003589,5]
[321963740,1712652643365,-500.0,0.0003589,5]
[321963742,1712652643375,-500.0,0.0003589,5]
[321963744,1712652643384,-500.0,0.0003589,5]
[321963746,1712652643393,-589.28,0.0003589,5]
[321963748,1712652643403,-500.0,0.0003589,5]
[321963750,1712652643413,-500.0,0.0003589,5]
[321963752,1712652643422,-485.65004601,0.0003589,5]
[321963754,1712652643432,-500.0,0.0003589,5]
[321963755,1712652643441,-541.17,0.0003589,5]
[321963756,1712652643451,-500.0,0.0003589,5]
[321963758,1712652643460,-1195.63,0.0003589,5]
[321963760,1712652643471,-500.0,0.0003589,5]
[321963762,1712652643482,-500.0,0.0003589,5]
[321963764,1712652643494,-500.0,0.0003589,5]
[321963765,1712652643503,-500.0,0.0003589,5]
[321963766,1712652643513,-980.41,0.0003589,5]
[321963768,1712652643522,-500.0,0.0003589,5]
[321963770,1712652643531,-502.89902299,0.0003589,5]
[321963772,1712652643541,-592.57,0.0003589,5]
[321963773,1712652643550,-674.37,0.0003589,5]
[321963774,1712652643559,-500.0,0.0003589,5]
[321963776,1712652643568,-1817.49,0.0003589,5]
[321963778,1712652643577,-606.79,0.0003589,5]
[321963779,1712652643586,-500.0,0.0003589,5]
[321963780,1712652643595,-500.0,0.0003589,5]
[321963781,1712652643604,-693.28,0.0003589,5]
[321963782,1712652643613,-500.0,0.0003589,5]
[321963783,1712652643622,-500.0,0.0003589,5]
[321963784,1712652643631,-309.82221017,0.0003589,5]
[321963785,1712652643641,-500.0,0.0003589,5]
[321963786,1712652643650,-500.0,0.0003589,5]
[321963787,1712652643660,-500.0,0.0003589,5]
[321963788,1712652643669,-500.0,0.0003589,5]
[321963789,1712652643678,-500.0,0.0003589,5]
[321963790,1712652643687,-500.0,0.0003589,5]
[321963791,1712652643697,-500.0,0.0003589,5]
[321963792,1712652643706,-500.0,0.0003589,5]
[321963793,1712652643715,-500.0,0.0003589,5]
[321963794,1712652643724,-500.0,0.0003589,5]
[321963795,1712652643733,-502.30811741,0.0003589,5]
[321963796,1712652643743,-500.0,0.0003589,5]
[321963797,1712652643752,-1410.81,0.0003589,5]
[321963798,1712652643762,-500.0,0.0003589,5]
[321963799,1712652643771,-500.0,0.0003589,5]
[321963800,1712652643781,-500.0,0.0003589,5]
[321963801,1712652643790,-500.0,0.0003589,5]
[321963802,1712652643799,-500.0,0.0003589,5]
[321963803,1712652643810,-500.0,0.0003589,5]
[321963804,1712652643819,-500.0,0.0003589,5]
[321963805,1712652643829,-500.0,0.0003589,5]
[321963806,1712652643838,-500.0,0.0003589,5]
[321963807,1712652643848,-500.0,0.0003589,5]
[321963808,1712652643857,-500.0,0.0003589,5]
[321963809,1712652643866,-500.0,0.0003589,5]
[321963810,1712652643876,-500.0,0.0003589,5]
[321963811,1712652643886,-500.0,0.0003589,5]
[321963812,1712652643895,-500.0,0.0003589,5]
[321963813,1712652643904,-500.0,0.0003589,5]
[321963814,1712652643914,-137.31137816,0.0003589,5]
[321963815,1712652643926,-360.57,0.0003589,5]
[321963816,1712652643997,-500.0,0.00035616,2]
[321963817,1712652644007,-500.0,0.00035616,2]
[321963818,1712652644017,-500.0,0.00035616,2]
[321963819,1712652644027,-2.11862184,0.0003589,5]
[321963820,1712652644037,-500.0,0.0003589,5]
[321963821,1712652644046,-500.0,0.0003589,5]
[321963822,1712652644056,-500.0,0.0003589,5]
[321963823,1712652644065,-500.0,0.0003589,5]
[321963824,1712652644074,-500.81484132,0.0003589,5]
[321963825,1712652644084,-500.0,0.0003589,5]
[321963826,1712652644093,-500.0,0.0003589,5]
[321963827,1712652644102,-500.0,0.0003589,5]
[321963828,1712652644112,-500.0,0.0003589,5]
[321963829,1712652644122,-500.0,0.0003589,5]
[321963830,1712652644130,-500.0,0.0003589,5]
[321963831,1712652644140,-390.36034507,0.0003589,5]
[321963832,1712652644149,-500.0,0.0003589,5]
[321963833,1712652644158,-714.25,0.0003589,2]
[321963834,1712652644168,-500.0,0.0003589,5]
[321963835,1712652644177,-181.38618965,0.0003589,5]
[321963836,1712652644190,-318.61381035,0.0003589,5]
[321963837,1712652644199,-837.71,0.0003589,5]
[321963838,1712652644208,-500.0,0.0003589,5]
[321963839,1712652644218,-502.44268522,0.0003589,5]
[321963840,1712652644227,-503.61657073,0.0003589,5]
[321963841,1712652644236,-2343.31,0.0003589,5]
[321963842,1712652644245,-1131.43,0.0003589,5]
[321963843,1712652644254,-500.0,0.0003589,5]
[321963844,1712652644265,-1639.89,0.0003589,5]
[321963845,1712652644273,-1064.66413004,0.0003589,5]
[321963969,1712652645929,-662.5256335,0.00035614,4]
[321963970,1712652645939,-500.34,0.00035616,2]
[321963971,1712652645948,-500.0,0.00035671,5]
[321963972,1712652645956,-500.0,0.00035888,5]
[321963973,1712652645965,-500.0,0.00035889,5]
[321963974,1712652645974,-646.63045969,0.00035889,5]
[321963975,1712652645983,-36.10586996,0.0003589,5]
[321963977,1712652645992,-5114.54,0.0003589,5]
[321963979,1712652646001,-184.23814281,0.0003589,5]
[321963980,1712652646009,-500.0,0.0003589,5]
[321963982,1712652646020,-708.72,0.0003589,5]
[321963984,1712652646029,-500.0,0.0003589,5]
[321963987,1712652646038,-500.0,0.0003589,5]
[321963990,1712652646047,-4344.59,0.0003589,5]
[321963993,1712652646056,-500.0,0.0003589,5]
[321963996,1712652646065,-1408.61186884,0.0003589,5]
[321964514,1712653051305,-900000.0,0.00038159,60]
[321964526,1712653093297,-1859995.6241248,0.00038159,60]
[321964527,1712653093321,-154.87609812,0.00038159,120]
[321964528,1712653093346,-139849.49977708,0.00038159,60]
[321964529,1712653100381,-241992.05537846,0.00038159,60]
[321964530,1712653100405,-800.51327954,0.00038159,120]
[321964531,1712653100428,-17656.33371164,0.00038159,120]
[321964532,1712653100450,-500.0,0.00038159,60]
[321964533,1712653100473,-650.0,0.00038159,60]
[321964534,1712653100497,-2166.44095725,0.00038159,120]
[321964535,1712653100522,-276397.0276449,0.00038159,60]
[321964536,1712653100545,-157.42193003,0.00038159,120]
[321964537,1712653100569,-1459680.20709818,0.00038159,60]
[321964542,1712653401608,352.41540877,0.0002104,15]
[321964544,1712653505318,151.0,0.000262,7]
[321964545,1712653510877,253.35318822,0.0002104,2]
[321964546,1712653522414,254.35963097,0.0002104,2]
[321964548,1712653626161,-154.8915759,0.00026702,2]
[321964549,1712653626183,-0.08918811,0.00026703,2]
[321964551,1712653646097,-1281.26822599,0.00026701,2]
[321964562,1712653753133,-454.98450155,0.00026692,2]
[321964723,1712653838373,-2579.961404,0.00026687,2]
[321964725,1712653838382,-400.0,0.00026688,2]
[321964727,1712653838391,-1930.68038705,0.00026689,2]
[321964728,1712653838403,-19135.52113988,0.00026689,2]
[321964729,1712653838416,-300.0,0.0002669,2]
[321964730,1712653838429,-24445.01549845,0.00026692,2]
[321964731,1712653838442,-1131.94892897,0.00026708,2]
[321964732,1712653838455,-244.16692299,0.00026709,2]
[321964733,1712653838466,-160.300413,0.00027397,2]
[321964734,1712653838478,-458.608118,0.00027675,2]
[321964735,1712653838490,-420.0,0.00029359,2]
[321964736,1712653838503,-587.0,0.00032295,2]
[321964737,1712653838515,-166.666666,0.00032877,2]
[321964738,1712653838527,-1092.59820221,0.00033,4]
[321964739,1712653838539,-166.666666,0.00033646,2]
[321964740,1712653838552,-166.666666,0.00034415,2]
[321964741,1712653838564,-166.666666,0.00035185,2]
[321964742,1712653838576,-160.300413,0.00035225,2]
[321964743,1712653838587,-1227.02010376,0.00035516,2]
[321964744,1712653838597,-156.67447725,0.00035516,2]
[321964745,1712653838609,-823.0,0.00035525,2]
[321964746,1712653838621,-1810.2424554,0.00035612,4]
[321964747,1712653838631,-156.54809607,0.00035612,4]
[321964748,1712653838643,-154.98450155,0.00035612,4]
[321964749,1712653838656,-218.11543718,0.00035612,4]
[321964750,1712653838667,-1936.22663734,0.00035612,4]
[321964751,1712653838680,-155.01085076,0.00035612,4]
[321964752,1712653838692,-360.55956051,0.00035612,4]
[321964753,1712653838704,-283.72062249,0.00035612,4]
[321964754,1712653838714,-438.72394941,0.00035612,4]
[321964755,1712653838724,-1615.90107094,0.00035612,4]
[321964756,1712653838737,-157.23136049,0.00035612,4]
[321964757,1712653838749,-464.52912341,0.00035612,4]
[321964758,1712653838761,-304.63314691,0.00035612,4]
[321964759,1712653838774,-799.19959429,0.00035612,35]
[321964760,1712653838786,-166.94313293,0.00035612,4]
[321964761,1712653838798,-313.00965131,0.00035612,4]
[321964762,1712653838809,-527.7226697,0.00035612,4]
[321964763,1712653838824,-1399.78697588,0.00035612,4]
[321964764,1712653838838,-154.98450155,0.00035612,4]
[321964765,1712653838851,-156.92957174,0.00035612,4]
[321964766,1712653838862,-207.63262723,0.00035612,4]
[321964767,1712653838876,-223.96377737,0.00035612,4]
[321964768,1712653838888,-154.98450155,0.00035612,4]
[321964769,1712653838901,-249.00570473,0.00035612,4]
[321964770,1712653838917,-1194.59509465,0.00035612,4]
[321964771,1712653838931,-561.5733288,0.00035612,4]
[321964772,1712653838942,-781.62971038,0.00035612,4]
[321964773,1712653838952,-249.34736369,0.00035613,4]
[321964774,1712653838962,-1170.85095037,0.00035613,4]
[321964775,1712653838972,-206.9756646,0.00035613,7]
[321964776,1712653838983,-253.46233178,0.00035614,4]
[321964777,1712653838994,-3581.32045879,0.00035614,4]
[321964778,1712653839006,-193.0126642,0.00035614,4]
[321964779,1712653839016,-155.0,0.00035614,4]
[321964780,1712653839028,-55466.10936801,0.00035614,4]
[321964781,1712653839040,-682.32292248,0.00035614,4]
[321964782,1712653839051,-241.89768426,0.00035614,4]
[321964783,1712653839061,-199.81778564,0.00035614,4]
[321964784,1712653839071,-1206.97084231,0.00035614,4]
[321964785,1712653839082,-338.16371369,0.00035614,7]
[321964786,1712653839092,-384.93625314,0.00035614,4]
[321964787,1712653839103,-371.98712946,0.00035614,4]
[321964788,1712653839114,-284.02551928,0.00035614,4]
[321964789,1712653839127,-179.48021003,0.00035614,4]
[321964790,1712653839138,-530.19178331,0.00035614,4]
[321964791,1712653839149,-698.07663535,0.00035614,4]
[321964792,1712653839161,-146601.05217755,0.00035616,3]
[321964793,1712653839172,-500.0,0.00035616,2]
[321964794,1712653839183,-500.0,0.00035616,2]
[321964795,1712653839194,-500.0,0.00035616,2]
[321964796,1712653839205,-500.0,0.00035616,2]
[321964797,1712653839217,-500.0,0.00035616,2]
[321964798,1712653839228,-500.0,0.00035616,2]
[321964799,1712653839238,-500.0,0.00035616,2]
[321964800,1712653839250,-493.6439027,0.00035616,2]
[321964801,1712653839260,-500.0,0.00035616,2]
[321964802,1712653839271,-500.0,0.00035616,2]
[321964803,1712653839282,-501.3228882,0.00035616,2]
[321964804,1712653839292,-501.11126677,0.00035616,2]
[321964805,1712653839303,-500.0,0.00035616,2]
[321964806,1712653839313,-500.0,0.00035616,2]
[321964807,1712653839324,-500.0,0.00035616,2]
[321964808,1712653839336,-646.41899913,0.00035616,2]
[321964809,1712653839348,-500.0,0.00035616,2]
[321964810,1712653839359,-168.31728859,0.00035616,2]
[321964811,1712653839371,-500.0,0.00035616,2]
[321964812,1712653839381,-294.51046818,0.00035616,2]
[321964813,1712653839392,-500.0,0.00035616,2]
[321964814,1712653839403,-500.0,0.00035616,2]
[321964815,1712653839413,-500.0,0.00035616,2]
[321964817,1712653839424,-500.0,0.00035616,2]
[321964819,1712653839436,-184.69300335,0.00035616,2]
[321964820,1712653839448,-500.0,0.00035616,2]
[321964822,1712653839459,-1173.49,0.00035616,2]
[321964824,1712653839470,-500.0,0.00035616,2]
[321964826,1712653839481,-164.8734558,0.00035616,2]
[321964828,1712653839491,-500.0,0.00035616,2]
[321964830,1712653839502,-500.0,0.00035616,2]
[321964834,1712653839513,-500.0,0.00035616,2]
[321964839,1712653839523,-180.43505414,0.00035616,2]
[321964842,1712653839535,-500.0,0.00035616,2]
[321964845,1712653839547,-500.0,0.00035616,2]
[321964849,1712653839558,-501.44278197,0.00035616,2]
[321964852,1712653839569,-500.0,0.00035616,2]
[321964855,1712653839579,-500.0,0.00035616,2]
[321964858,1712653839590,-500.0,0.00035616,2]
[321964860,1712653839600,-500.0,0.00035616,2]
[321964863,1712653839611,-501.09464452,0.00035616,2]
[321964866,1712653839622,-500.0,0.00035616,2]
[321964869,1712653839633,-500.0,0.00035616,2]
[321964872,1712653839644,-623.09521547,0.00035616,2]
[321964874,1712653839655,-619.46392019,0.00035616,2]
[321964876,1712653839666,-500.0,0.00035616,2]
[321964878,1712653839677,-500.0,0.00035616,2]
[321964880,1712653839688,-500.0,0.00035616,2]
[321964883,1712653839699,-500.0,0.00035616,2]
[321964885,1712653839710,-460.4420057,0.00035616,2]
[321964886,1712653839720,-500.91291952,0.00035616,2]
[321964887,1712653839731,-500.0,0.00035616,2]
[321964888,1712653839741,-500.0,0.00035616,2]
[321964889,1712653839751,-500.0,0.00035616,2]
[321964893,1712653839916,-500.0,0.00035616,2]
[321964894,1712653839937,-190.39462141,0.00035616,2]
[321964895,1712653839947,-500.0,0.00035616,2]
[321964897,1712653839956,-500.0,0.00035616,2]
[321964898,1712653839965,-500.0,0.00035616,2]
[321964899,1712653839974,-500.93752798,0.00035616,2]
[321964900,1712653839983,-500.0,0.00035616,2]
[321964901,1712653839992,-500.0,0.00035616,2]
[321964902,1712653840001,-500.0,0.00035616,2]
[321964903,1712653840011,-500.0,0.00035616,2]
[321964904,1712653840020,-212.30960521,0.00035616,2]
[321964905,1712653840030,-500.0,0.00035616,2]
[321964906,1712653840038,-500.0,0.00035616,2]
[321964907,1712653840048,-500.0,0.00035616,2]
[321964908,1712653840056,-500.0,0.00035616,2]
[321964909,1712653840066,-500.0,0.00035616,2]
[321964910,1712653840074,-500.0,0.00035616,2]
[321964911,1712653840083,-500.0,0.00035616,2]
[321964912,1712653840092,-500.83738763,0.00035616,2]
[321964913,1712653840102,-501.0977312,0.00035616,2]
[321964914,1712653840111,-500.87623615,0.00035616,2]
[321964915,1712653840121,-764.71,0.00035616,2]
[321964916,1712653840130,-500.0,0.00035616,2]
[321964917,1712653840139,-500.0,0.00035616,2]
[321964918,1712653840149,-1785.73,0.00035616,2]
[321964919,1712653840158,-500.0,0.00035616,2]
[321964920,1712653840167,-500.0,0.00035616,2]
[321964921,1712653840176,-500.0,0.00035616,2]
[321964922,1712653840186,-500.0,0.00035616,2]
[321964923,1712653840195,-500.0,0.00035616,2]
[321964924,1712653840204,-500.0,0.00035616,2]
[321964925,1712653840214,-500.0,0.00035616,2]
[321964927,1712653840223,-500.0,0.00035616,2]
[321964929,1712653840233,-519.36281964,0.00035616,2]
[321964930,1712653840242,-500.0,0.00035616,2]
[321964931,1712653840251,-500.0,0.00035616,2]
[321964932,1712653840260,-500.0,0.00035616,2]
[321964933,1712653840269,-602.67,0.00035616,2]
[321964934,1712653840279,-536.11,0.00035616,2]
[321964935,1712653840288,-501.93927738,0.00035616,2]
[321964936,1712653840297,-500.0,0.00035616,2]
[321964937,1712653840306,-500.0,0.00035616,2]
[321964938,1712653840315,-500.0,0.00035616,2]
[321964939,1712653840324,-500.0,0.00035616,2]
[321964940,1712653840333,-500.0,0.00035616,2]
[321964941,1712653840342,-500.0,0.00035616,2]
[321964942,1712653840351,-500.0,0.00035616,2]
[321964943,1712653840360,-500.0,0.00035616,2]
[321964944,1712653840369,-500.0,0.00035616,2]
[321964945,1712653840378,-500.71028346,0.00035616,2]
[321964946,1712653840387,-227.19255023,0.00035616,2]
[321964947,1712653840396,-500.0,0.00035616,2]
[321964948,1712653840406,-500.0,0.00035616,14]
[321964949,1712653840415,-592.07022979,0.00035616,2]
[321964950,1712653840424,-500.0,0.00035616,2]
[321964951,1712653840434,-504.04639624,0.00035616,2]
[321964952,1712653840443,-1211.98,0.00035616,2]
[321964953,1712653840452,-500.0,0.00035616,2]
[321964954,1712653840461,-500.0,0.00035616,2]
[321964955,1712653840471,-500.0,0.00035616,2]
[321964956,1712653840480,-500.0,0.00035616,2]
[321964957,1712653840489,-500.0,0.00035616,2]
[321964958,1712653840498,-500.0,0.00035616,2]
[321964959,1712653840507,-500.37301098,0.00035616,2]
[321964960,1712653840517,-200.25216823,0.00035616,2]
[321964961,1712653840526,-500.82789157,0.00035616,2]
[321964962,1712653840535,-500.0,0.00035616,2]
[321964963,1712653840544,-500.0,0.00035616,2]
[321964964,1712653840553,-500.77111735,0.00035616,2]
[321964965,1712653840562,-321.83237999,0.00035616,2]
[321964966,1712653840571,-500.0,0.00035616,2]
[321964967,1712653840580,-500.0,0.00035616,2]
[321964968,1712653840589,-481.43901605,0.00035616,2]
[321964969,1712653840598,-500.0,0.00035616,2]
[321964970,1712653840607,-500.89236074,0.00035616,2]
[321964971,1712653840615,-500.0,0.00035616,2]
[321964972,1712653840625,-513.55991851,0.00035616,2]
[321964973,1712653840635,-500.0,0.00035616,2]
[321964974,1712653840643,-500.0,0.00035616,2]
[321964975,1712653840652,-500.0,0.00035616,2]
[321964976,1712653840662,-500.0,0.00035616,2]
[321964977,1712653840672,-500.0,0.00035616,2]
[321964978,1712653840682,-500.0,0.00035616,2]
[321964979,1712653840692,-500.0,0.00035616,2]
[321964980,1712653840703,-153.20965356,0.00035616,2]
[321964981,1712653840714,-500.0,0.00035616,2]
[321964982,1712653840724,-500.0,0.00035616,2]
[321964983,1712653840734,-469.63912323,0.00035616,2]
[321964984,1712653840744,-500.0,0.00035616,2]
[321964985,1712653840754,-500.0,0.00035616,2]
[321964986,1712653840764,-501.80694902,0.00035616,2]
[321964987,1712653840775,-764.83,0.00035616,2]
[321964988,1712653840785,-586.5,0.00035616,2]
[321964989,1712653840795,-500.0,0.00035616,2]
[321964990,1712653840805,-504.67559332,0.00035616,2]
[321964991,1712653840814,-1000.0,0.00035616,10]
[321964992,1712653840827,-1000.0,0.00035616,10]
[321964993,1712653840836,-500.0,0.00035616,2]
[321964994,1712653840846,-1000.0,0.00035616,10]
[321964995,1712653840856,-1000.0,0.00035616,10]
[321964996,1712653840866,-500.0,0.00035616,2]
[321964997,1712653840877,-1000.0,0.00035616,10]
[321964998,1712653840887,-1000.0,0.00035616,10]
[321964999,1712653840896,-1000.0,0.00035616,10]
[321965000,1712653840907,-1000.0,0.00035616,10]
[321965001,1712653840917,-1000.0,0.00035616,10]
[321965002,1712653840927,-1000.0,0.00035616,10]
[321965003,1712653840936,-1000.0,0.00035616,10]
[321965004,1712653840946,-1000.0,0.00035616,10]
[321965005,1712653840956,-1000.0,0.00035616,10]
[321965006,1712653840966,-1000.0,0.00035616,10]
[321965007,1712653840976,-1000.0,0.00035616,10]
[321965008,1712653840986,-1000.0,0.00035616,10]
[321965009,1712653840996,-500.0,0.00035616,2]
[321965010,1712653841005,-1000.0,0.00035616,10]
[321965011,1712653841015,-500.71127483,0.00035616,2]
[321965012,1712653841026,-1000.0,0.00035616,10]
[321965013,1712653841035,-1000.0,0.00035616,10]
[321965014,1712653841045,-1000.0,0.00035616,10]
[321965015,1712653841055,-1104.92777759,0.00035616,10]
[321965016,1712653841067,-624.36,0.00035616,2]
[321965017,1712653841077,-500.0,0.00035616,2]
[321965018,1712653841087,-500.0,0.00035616,2]
[321965019,1712653841097,-730.31,0.00035616,2]
[321965020,1712653841107,-470.73586514,0.00035616,2]
[321965021,1712653841117,-500.0,0.00035616,2]
[321965022,1712653841128,-500.0,0.00035616,2]
[321965023,1712653841138,-501.66027574,0.00035616,2]
[321965024,1712653841148,-500.0,0.00035616,2]
[321965025,1712653841158,-500.0,0.00035616,2]
[321965026,1712653841168,-501.01914115,0.00035616,2]
[321965027,1712653841178,-196.89106982,0.00035616,2]
[321965028,1712653841189,-518.62,0.00035616,2]
[321965029,1712653841199,-500.0,0.00035616,2]
[321965030,1712653841209,-500.0,0.00035616,2]
[321965031,1712653841220,-500.0,0.00035616,2]
[321965032,1712653841229,-500.0,0.00035616,2]
[321965033,1712653841239,-500.0,0.00035616,2]
[321965034,1712653841248,-500.0,0.00035616,2]
[321965035,1712653841258,-500.0,0.00035616,2]
[321965036,1712653841267,-500.0,0.00035616,2]
[321965037,1712653841277,-500.0,0.00035616,2]
[321965038,1712653841285,-500.0,0.00035616,2]
[321965039,1712653841295,-500.0,0.00035616,2]
[321965040,1712653841304,-500.0,0.00035616,2]
[321965041,1712653841313,-500.0,0.00035616,2]
[321965042,1712653841322,-500.87774121,0.00035616,2]
[321965043,1712653841331,-500.0,0.00035616,2]
[321965044,1712653841340,-500.0,0.00035616,2]
[321965045,1712653841349,-500.0,0.00035616,2]
[321965046,1712653841359,-500.0,0.00035616,2]
[321965047,1712653841368,-500.0,0.00035616,2]
[321965048,1712653841379,-500.0,0.00035616,2]
[321965049,1712653841389,-500.0,0.00035616,2]
[321965050,1712653841399,-500.0,0.00035616,2]
[321965051,1712653841409,-960.4,0.00035616,2]
[321965052,1712653841418,-500.0,0.00035616,2]
[321965053,1712653841427,-500.33374769,0.00035616,2]